[Event "28th Hit Open-A 2024"]
[Site "Nova Gorica"]
[Date "2024.02.02"]
[Round "9.14"]
[White "Ongut, Tamas Gunes"]
[Black "Jalovec, Igor"]
[Result "1-0"]
[ECO "E67"]
[WhiteElo "2310"]
[BlackElo "1703"]
[Annotator "ChessBase"]
[PlyCount "47"]
[EventDate "2024.01.22"]
[EventType "swiss"]
[EventCountry "SLO"]
[SourceTitle "playchess.com"]
[Source "ChessBase"]
[SourceQuality "1"]
[TimeControl "5400+30"]

1. c4 {[%emt 0:06:06]} Nf6 {[%emt 0:01:01]} 2. Nc3 {[%emt 0:00:09]} e5 {[%emt 0:01:28]} 3. Nf3 {[%emt 0:00:17]} d6 {[%emt 0:00:55]} 4. d4 {[%emt 0:00:09]} exd4 {[%emt 0:02:19]} 5. Nxd4 {[%emt 0:00:11]} g6 {[%emt 0:01:19]} 6. g3 {[%emt 0:00:39]} Bg7 {[%emt 0:00:21]} 7. Bg2 {[%emt 0:00:11]} O-O {[%emt 0:00:09]} 8. O-O {[%emt 0:00:06]} Nbd7 {[%emt 0:01:37]} 9. b3 {[%emt 0:00:13]} Nb6 {[%emt 0:02:42]} 10. Qd2 {[%emt 0:05:27]} d5 {[%emt 0:08:02]} 11. c5 {[%emt 0:00:10]} Nbd7 {[%emt 0:00:18]} 12. c6 {[%emt 0:01:11]} Ne5 {[%emt 0:03:08]} 13. cxb7 {[%emt 0:04:12]} Bxb7 {[%emt 0:00:04]} 14. Ba3 {[%emt 0:00:15]} Re8 {[%emt 0:00:44]} 15. Rac1 {[%emt 0:04:49]} Neg4 {[%emt 0:05:01]} 16. Qd3 {[%emt 0:07:07]} Ne4 {[%emt 0:05:04]} 17. Nxe4 {[%emt 0:19:31]} dxe4 {[%emt 0:05:12]} 18. Qb5 {[%emt 0:00:08]} Bxd4 {[%emt 0:15:55]} 19. Qxb7 {[%emt 0:00:07]} Nxf2 {[%emt 0:02:52]} 20. Rxf2 {[%emt 0:00:10]} Qf6 {[%emt 0:02:17]} 21. Rcf1 {[%emt 0:00:53]} Rab8 {[%emt 0:05:20]} 22. Qd5 {[%emt 0:02:36]} Rbd8 {[%emt 0:00:38]} 23. Qc4 {[%emt 0:00:31]} Re5 {[%emt 0:01:08]} 24. Qxd4 {[%emt 0:01:20]} 1-0

[Event "28th Hit Open-A 2024"]
[Site "Nova Gorica"]
[Date "2024.02.02"]
[Round "9.15"]
[White "Privitera, Franco"]
[Black "Furlan, Miha"]
[Result "0-1"]
[ECO "D02"]
[WhiteElo "1919"]
[BlackElo "2287"]
[Annotator "ChessBase"]
[PlyCount "50"]
[EventDate "2024.01.22"]
[EventType "swiss"]
[EventCountry "SLO"]
[SourceTitle "playchess.com"]
[Source "ChessBase"]
[SourceQuality "1"]
[TimeControl "5400+30"]

1. d4 {[%emt 0:00:35]} d5 {[%emt 0:00:07]} 2. Nf3 {[%emt 0:00:35]} Nf6 {[%emt 0:00:09]} 3. Bf4 {[%emt 0:00:57]} e6 {[%emt 0:01:22]} 4. Nbd2 {[%emt 0:00:18]} Bd6 {[%emt 0:00:50]} 5. Bg3 {[%emt 0:01:15]} O-O {[%emt 0:01:32]} 6. e3 {[%emt 0:00:09]} b6 {[%emt 0:00:17]} 7. Bd3 {[%emt 0:05:26]} Ba6 {[%emt 0:01:00]} 8. Qe2 {[%emt 0:02:23]} Bxd3 {[%emt 0:05:36]} 9. Qxd3 {[%emt 0:00:15]} c5 {[%emt 0:01:02]} 10. c3 {[%emt 0:00:15]} Nc6 {[%emt 0:00:28]} 11. Ne5 {[%emt 0:07:20]} Bxe5 {[%emt 0:02:49]} 12. dxe5 {[%emt 0:00:16]} Nd7 {[%emt 0:00:36]} 13. f4 {[%emt 0:04:12]} c4 {[%emt 0:00:51]} 14. Qe2 {[%emt 0:00:26]} Nc5 {[%emt 0:00:26]} 15. O-O {[%emt 0:00:28]} b5 {[%emt 0:02:47]} 16. f5 {[%emt 0:01:57]} exf5 {[%emt 0:02:30]} 17. Rxf5 {[%emt 0:00:28]} Qd7 {[%emt 0:00:28]} 18. Raf1 {[%emt 0:02:08]} Rae8 {[%emt 0:00:36]} 19. Qh5 {[%emt 0:08:13]} Re6 {[%emt 0:05:55]} 20. Rf6 {[%emt 0:01:00]} Nd3 {[%emt 0:10:03]} 21. Nf3 {[%emt 0:01:08]} gxf6 {[%emt 0:08:34]} 22. exf6 {[%emt 0:16:21]} Rxf6 {[%emt 0:02:12]} 23. Nh4 {[%emt 0:03:37]} Rxf1+ {[%emt 0:00:57]} 24. Kxf1 {[%emt 0:00:01]} f5 {[%emt 0:00:22]} 25. Qh6 {[%emt 0:01:39]} Nce5 {[%emt 0:02:53]} 0-1

[Event "28th Hit Open-A 2024"]
[Site "Nova Gorica"]
[Date "2024.02.02"]
[Round "9.16"]
[White "Dorokhina, Elizaveta"]
[Black "Herega, Nejc"]
[Result "1/2-1/2"]
[ECO "D32"]
[WhiteElo "1994"]
[BlackElo "2257"]
[Annotator "ChessBase"]
[PlyCount "151"]
[EventDate "2024.01.22"]
[EventType "swiss"]
[EventCountry "SLO"]
[SourceTitle "playchess.com"]
[Source "ChessBase"]
[SourceQuality "1"]
[TimeControl "5400+30"]

1. d4 {[%emt 0:12:41]} d5 {[%emt 0:00:18]} 2. c4 {[%emt 0:00:08]} e6 {[%emt 0:00:20]} 3. Nc3 {[%emt 0:00:09]} c5 {[%emt 0:00:14]} 4. cxd5 {[%emt 0:02:49]} exd5 {[%emt 0:00:09]} 5. Nf3 {[%emt 0:00:28]} Nc6 {[%emt 0:00:18]} 6. Bg5 {[%emt 0:01:31]} Be7 {[%emt 0:01:31]} 7. Bxe7 {[%emt 0:00:30]} Ngxe7 {[%emt 0:00:10]} 8. e3 {[%emt 0:01:05]} c4 {[%emt 0:00:57]} 9. e4 {[%emt 0:06:14]} O-O {[%emt 0:15:06]} 10. Be2 {[%emt 0:06:12]} dxe4 {[%emt 0:04:22]} 11. Nxe4 {[%emt 0:00:08]} Bg4 {[%emt 0:01:22]} 12. Bxc4 {[%emt 0:05:25]} Nf5 {[%emt 0:17:38]} 13. O-O {[%emt 0:02:00]} Ncxd4 {[%emt 0:02:45]} 14. Neg5 {[%emt 0:03:51]} Qf6 {[%emt 0:06:45]} 15. h3 {[%emt 0:03:35]} Bh5 {[%emt 0:03:41]} 16. g4 {[%emt 0:03:37]} Rad8 {[%emt 0:04:26]} 17. Ne4 {[%emt 0:16:09]} Qc6 {[%emt 0:05:37]} 18. Bd3 {[%emt 0:02:56]} Nxf3+ {[%emt 0:02:34]} 19. Qxf3 {[%emt 0:00:13]} Nd4 {[%emt 0:03:13]} 20. Qg2 {[%emt 0:03:39]} Bg6 {[%emt 0:02:33]} 21. Rad1 {[%emt 0:01:04]} Ne6 {[%emt 0:01:43]} 22. Bb1 {[%emt 0:00:38]} h6 {[%emt 0:03:34]} 23. Nc3 {[%emt 0:01:15]} Rxd1 {[%emt 0:02:58]} 24. Rxd1 {[%emt 0:00:14]} Qb6 {[%emt 0:00:30]} 25. b3 {[%emt 0:07:23]} Bxb1 {[%emt 0:00:42]} 26. Nxb1 {[%emt 0:00:33]} f5 {[%emt 0:01:57]} 27. Nc3 {[%emt 0:00:54]} Nf4 {[%emt 0:01:42]} 28. Nd5 {[%emt 0:03:43]} Qd6 {[%emt 0:03:20]} 29. Qf3 {[%emt 0:01:15]} fxg4 {[%emt 0:00:46]} 30. hxg4 {[%emt 0:00:10]} Nxd5 {[%emt 0:02:34]} 31. Qxd5+ {[%emt 0:00:06]} Qxd5 {[%emt 0:00:03]} 32. Rxd5 {[%emt 0:00:08]} Rf4 {[%emt 0:00:27]} 33. Rd8+ {[%emt 0:00:27]} Kh7 {[%emt 0:01:41]} 34. f3 {[%emt 0:02:19]} Rxf3 {[%emt 0:00:22]} 35. Kg2 {[%emt 0:00:04]} Rc3 {[%emt 0:02:26]} 36. Rd7 {[%emt 0:00:18]} Rc2+ {[%emt 0:00:42]} 37. Kg3 {[%emt 0:00:04]} Rxa2 {[%emt 0:00:27]} 38. Rxb7 {[%emt 0:00:07]} Ra1 {[%emt 0:00:40]} 39. Rc7 {[%emt 0:00:42]} a5 {[%emt 0:00:35]} 40. Rb7 {[%emt 0:02:46]} Ra3 {[%emt 0:00:25]} 41. Kf4 {[%emt 0:00:50]} Ra1 {[%emt 0:01:03]} 42. Rb5 {[%emt 0:02:06]} a4 {[%emt 0:01:12]} 43. bxa4 {[%emt 0:00:12]} Rxa4+ {[%emt 0:00:04]} 44. Kg3 {[%emt 0:00:10]} Ra3+ {[%emt 0:00:30]} 45. Kg2 {[%emt 0:00:23]} Kg6 {[%emt 0:00:25]} 46. Rc5 {[%emt 0:00:31]} Kf6 {[%emt 0:00:40]} 47. Rf5+ {[%emt 0:00:38]} Ke6 {[%emt 0:00:09]} 48. Rb5 {[%emt 0:00:06]} Re3 {[%emt 0:00:30]} 49. Ra5 {[%emt 0:01:12]} Re5 {[%emt 0:00:48]} 50. Ra6+ {[%emt 0:00:00]} Kd5 {[%emt 0:01:02]} 51. Kf3 {[%emt 0:00:13]} Re6 {[%emt 0:00:37]} 52. Ra5+ {[%emt 0:00:41]} Kd6 {[%emt 0:00:27]} 53. Ra7 {[%emt 0:00:40]} Re7 {[%emt 0:00:29]} 54. Ra5 {[%emt 0:00:12]} Ke6 {[%emt 0:00:11]} 55. Rb5 {[%emt 0:00:39]} Kf6 {[%emt 0:00:16]} 56. Rf5+ {[%emt 0:00:23]} Kg6 {[%emt 0:00:05]} 57. Ra5 {[%emt 0:00:06]} Re6 {[%emt 0:00:25]} 58. Rb5 {[%emt 0:00:48]} Kf7 {[%emt 0:00:56]} 59. Rb7+ {[%emt 0:00:19]} Kf6 {[%emt 0:00:03]} 60. Ra7 {[%emt 0:02:21]} g6 {[%emt 0:00:17]} 61. Kf4 {[%emt 0:02:24]} Rb6 {[%emt 0:01:15]} 62. Ra5 {[%emt 0:00:20]} Rb4+ {[%emt 0:00:14]} 63. Kf3 {[%emt 0:00:39]} Rb3+ {[%emt 0:00:05]} 64. Kf2 {[%emt 0:00:39]} Rh3 {[%emt 0:00:17]} 65. Rb5 {[%emt 0:00:37]} Rh2+ {[%emt 0:00:47]} 66. Kf3 {[%emt 0:00:19]} Rd2 {[%emt 0:00:30]} 67. Ra5 {[%emt 0:00:43]} Rd6 {[%emt 0:00:19]} 68. Kf4 {[%emt 0:00:34]} g5+ {[%emt 0:00:53]} 69. Kf3 {[%emt 0:00:55]} Kg6 {[%emt 0:00:43]} 70. Ra8 {[%emt 0:00:26]} Rb6 {[%emt 0:00:33]} 71. Kg3 {[%emt 0:00:34]} Kf6 {[%emt 0:00:44]} 72. Ra5 {[%emt 0:00:11]} Rb3+ {[%emt 0:00:34]} 73. Kf2 {[%emt 0:00:17]} Rb4 {[%emt 0:00:10]} 74. Kf3 {[%emt 0:01:01]} Rf4+ {[%emt 0:01:13]} 75. Kg3 {[%emt 0:00:04]} Kg6 {[%emt 0:00:06]} 76. Ra8 {[%emt 0:00:33]} 1/2-1/2

[Event "28th Hit Open-A 2024"]
[Site "Nova Gorica"]
[Date "2024.02.02"]
[Round "9.17"]
[White "Gregoric, Andraz"]
[Black "Pirs, Matjaz"]
[Result "1/2-1/2"]
[ECO "A36"]
[WhiteElo "2217"]
[BlackElo "1965"]
[Annotator "ChessBase"]
[PlyCount "77"]
[EventDate "2024.01.22"]
[EventType "swiss"]
[EventCountry "SLO"]
[SourceTitle "playchess.com"]
[Source "ChessBase"]
[SourceQuality "1"]
[TimeControl "5400+30"]

1. e4 {[%emt 0:04:44]} c5 {[%emt 0:00:35]} 2. Nf3 {[%emt 0:00:19]} e6 {[%emt 0:01:21]} 3. c4 {[%emt 0:00:27]} Nc6 {[%emt 0:01:02]} 4. Nc3 {[%emt 0:00:13]} Nd4 {[%emt 0:01:43]} 5. g3 {[%emt 0:01:09]} Ne7 {[%emt 0:01:03]} 6. Bg2 {[%emt 0:00:24]} Nec6 {[%emt 0:00:55]} 7. d3 {[%emt 0:01:04]} g6 {[%emt 0:01:25]} 8. O-O {[%emt 0:00:07]} Bg7 {[%emt 0:00:06]} 9. Be3 {[%emt 0:02:11]} O-O {[%emt 0:00:55]} 10. Qd2 {[%emt 0:00:31]} d6 {[%emt 0:04:15]} 11. Bh6 {[%emt 0:02:47]} Bxh6 {[%emt 0:05:33]} 12. Qxh6 {[%emt 0:00:09]} Nxf3+ {[%emt 0:02:17]} 13. Bxf3 {[%emt 0:00:03]} Qf6 {[%emt 0:03:45]} 14. Bg2 {[%emt 0:00:06]} Rb8 {[%emt 0:03:15]} 15. Kh1 {[%emt 0:08:51]} Nd4 {[%emt 0:03:10]} 16. a4 {[%emt 0:05:16]} a6 {[%emt 0:04:17]} 17. f4 {[%emt 0:03:37]} Qg7 {[%emt 0:06:34]} 18. Qh4 {[%emt 0:02:46]} f5 {[%emt 0:08:18]} 19. Rae1 {[%emt 0:05:09]} Bd7 {[%emt 0:01:08]} 20. Rf2 {[%emt 0:06:28]} Rfc8 {[%emt 0:11:43]} 21. g4 {[%emt 0:01:51]} fxg4 {[%emt 0:02:44]} 22. Qxg4 {[%emt 0:04:39]} e5 {[%emt 0:13:23]} 23. Qg3 {[%emt 0:00:26]} Be6 {[%emt 0:00:30]} 24. Bh3 {[%emt 0:03:32]} Rf8 {[%emt 0:00:58]} 25. Ref1 {[%emt 0:01:36]} Bxh3 {[%emt 0:01:31]} 26. Qxh3 {[%emt 0:00:04]} exf4 {[%emt 0:00:59]} 27. Rxf4 {[%emt 0:00:24]} Rxf4 {[%emt 0:00:14]} 28. Rxf4 {[%emt 0:00:04]} Rf8 {[%emt 0:00:25]} 29. Nd5 {[%emt 0:03:54]} Rxf4 {[%emt 0:01:20]} 30. Nxf4 {[%emt 0:00:02]} Qf7 {[%emt 0:00:16]} 31. Qg4 {[%emt 0:02:52]} Kg7 {[%emt 0:09:26]} 32. Kg2 {[%emt 0:00:44]} h6 {[%emt 0:00:13]} 33. h4 {[%emt 0:02:06]} Kh7 {[%emt 0:00:25]} 34. a5 {[%emt 0:03:35]} Nc6 {[%emt 0:03:58]} 35. Qg3 {[%emt 0:14:20]} Qf6 {[%emt 0:00:54]} 36. Kh3 {[%emt 0:03:42]} Ne5 {[%emt 0:01:35]} 37. Kg2 {[%emt 0:01:02]} Nc6 {[%emt 0:00:14]} 38. Kh3 {[%emt 0:00:05]} Ne5 {[%emt 0:00:08]} 39. Kg2 {[%emt 0:00:03]} 1/2-1/2

[Event "28th Hit Open-A 2024"]
[Site "Nova Gorica"]
[Date "2024.02.02"]
[Round "9.18"]
[White "Siraj, Svit"]
[Black "Centrih, Aleks"]
[Result "0-1"]
[ECO "A48"]
[WhiteElo "2182"]
[BlackElo "2082"]
[Annotator "ChessBase"]
[PlyCount "112"]
[EventDate "2024.01.22"]
[EventType "swiss"]
[EventCountry "SLO"]
[SourceTitle "playchess.com"]
[Source "ChessBase"]
[SourceQuality "1"]
[TimeControl "5400+30"]

1. Nf3 {[%emt 0:00:07]} Nf6 {[%emt 0:00:35]} 2. c3 {[%emt 0:00:35]} g6 {[%emt 0:01:00]} 3. d4 {[%emt 0:00:13]} Bg7 {[%emt 0:00:09]} 4. Nbd2 {[%emt 0:00:11]} d5 {[%emt 0:00:24]} 5. b4 {[%emt 0:00:29]} a5 {[%emt 0:04:45]} 6. e3 {[%emt 0:00:34]} axb4 {[%emt 0:08:22]} 7. cxb4 {[%emt 0:00:10]} Bf5 {[%emt 0:00:10]} 8. Ne5 {[%emt 0:01:12]} Nbd7 {[%emt 0:01:29]} 9. Bd3 {[%emt 0:04:35]} Nxe5 {[%emt 0:06:10]} 10. Bxf5 {[%emt 0:00:37]} gxf5 {[%emt 0:00:08]} 11. dxe5 {[%emt 0:03:56]} Ng4 {[%emt 0:00:40]} 12. a4 {[%emt 0:04:42]} Nxe5 {[%emt 0:03:30]} 13. Ra3 {[%emt 0:00:34]} e6 {[%emt 0:06:55]} 14. O-O {[%emt 0:07:24]} O-O {[%emt 0:04:24]} 15. Bb2 {[%emt 0:01:42]} Nf3+ {[%emt 0:02:01]} 16. Nxf3 {[%emt 0:00:33]} Bxb2 {[%emt 0:00:06]} 17. Ra2 {[%emt 0:00:04]} Bg7 {[%emt 0:00:57]} 18. Qb3 {[%emt 0:00:46]} Qe7 {[%emt 0:15:42]} 19. Rc1 {[%emt 0:01:07]} c6 {[%emt 0:01:31]} 20. Nd4 {[%emt 0:10:55]} Rfc8 {[%emt 0:00:34]} 21. Rac2 {[%emt 0:00:33]} Bf8 {[%emt 0:07:58]} 22. Rc5 {[%emt 0:02:58]} Qd8 {[%emt 0:02:53]} 23. R5c3 {[%emt 0:00:44]} Qb6 {[%emt 0:00:29]} 24. Rb1 {[%emt 0:01:07]} Qxb4 {[%emt 0:09:11]} 25. Qxb4 {[%emt 0:03:06]} Bxb4 {[%emt 0:00:08]} 26. Rxb4 {[%emt 0:00:03]} c5 {[%emt 0:00:07]} 27. Rxb7 {[%emt 0:03:07]} cxd4 {[%emt 0:00:05]} 28. Rxc8+ {[%emt 0:00:05]} Rxc8 {[%emt 0:00:06]} 29. Kf1 {[%emt 0:00:08]} dxe3 {[%emt 0:05:54]} 30. fxe3 {[%emt 0:00:11]} Rc4 {[%emt 0:00:45]} 31. a5 {[%emt 0:00:25]} Ra4 {[%emt 0:00:04]} 32. Rb5 {[%emt 0:00:36]} Ra2 {[%emt 0:01:14]} 33. h3 {[%emt 0:01:10]} Kg7 {[%emt 0:00:10]} 34. Rb4 {[%emt 0:00:21]} Rxa5 {[%emt 0:00:09]} 35. Kf2 {[%emt 0:00:04]} Rc5 {[%emt 0:00:44]} 36. Rb7 {[%emt 0:00:14]} Rc4 {[%emt 0:00:10]} 37. Kf3 {[%emt 0:00:18]} Kf6 {[%emt 0:00:43]} 38. Rd7 {[%emt 0:00:15]} Rc3 {[%emt 0:00:41]} 39. Kf2 {[%emt 0:02:29]} h5 {[%emt 0:02:07]} 40. h4 {[%emt 0:00:00]} Rc4 {[%emt 0:00:05]} 41. g3 {[%emt 0:00:00]} Rg4 {[%emt 0:05:41]} 42. Kf3 {[%emt 0:00:00]} Rg7 {[%emt 0:00:06]} 43. Rd8 {[%emt 0:00:00]} Rg4 {[%emt 0:01:39]} 44. Rh8 {[%emt 0:01:11]} Kg7 {[%emt 0:00:44]} 45. Rd8 {[%emt 0:01:24]} Ra4 {[%emt 0:00:12]} 46. Kf2 {[%emt 0:00:29]} Ra3 {[%emt 0:00:32]} 47. Re8 {[%emt 0:01:37]} Kf6 {[%emt 0:01:58]} 48. Rh8 {[%emt 0:00:37]} Ke5 {[%emt 0:00:05]} 49. Rxh5 {[%emt 0:00:33]} Ke4 {[%emt 0:00:04]} 50. Rg5 {[%emt 0:01:38]} Ra2+ {[%emt 0:00:05]} 51. Kf1 {[%emt 0:01:18]} Kxe3 {[%emt 0:00:06]} 52. h5 {[%emt 0:00:03]} d4 {[%emt 0:00:13]} 53. g4 {[%emt 0:00:05]} fxg4 {[%emt 0:01:32]} 54. Rxg4 {[%emt 0:00:14]} Kf3 {[%emt 0:00:02]} 55. Rxd4 {[%emt 0:00:20]} Ra1+ {[%emt 0:00:02]} 56. Rd1 {[%emt 0:00:05]} Rxd1# {[%emt 0:00:02]} 0-1

[Event "28th Hit Open-A 2024"]
[Site "Nova Gorica"]
[Date "2024.02.02"]
[Round "9.19"]
[White "Davies, Nigel R"]
[Black "Orsatti, Marcello"]
[Result "1-0"]
[ECO "D35"]
[WhiteElo "2349"]
[BlackElo "1918"]
[Annotator "RC"]
[PlyCount "61"]
[EventDate "2024.01.22"]
[EventType "swiss"]
[EventCountry "SLO"]
[SourceTitle "playchess.com"]
[Source "ChessBase"]
[SourceQuality "1"]
[TimeControl "5400+30"]

1. d4 {[%emt 0:08:18]} d5 {[%emt 0:00:40]} 2. c4 {[%emt 0:00:35]} e6 {[%emt 0:00:06]} 3. Nc3 {[%emt 0:00:07]} Nf6 {[%emt 0:00:25]} 4. cxd5 {[%emt 0:00:21]} exd5 {[%emt 0:00:12]} 5. Bg5 {[%emt 0:00:14]} Nbd7 {[%emt 0:00:18]} 6. e3 {[%emt 0:00:09]} Be7 {[%emt 0:00:08]} 7. Bd3 {[%emt 0:00:20]} c6 {[%emt 0:00:15]} 8. h3 {[%emt 0:01:00]} Ne4 {[%emt 0:08:58]} 9. Bf4 {[%emt 0:03:29]} Ndf6 {[%emt 0:02:14]} 10. Qc2 {[%emt 0:03:01]} Nxc3 {[%emt 0:00:52]} 11. bxc3 {[%emt 0:00:12]} Bd6 {[%emt 0:00:19]} 12. Ne2 {[%emt 0:02:46]} Bxf4 {[%emt 0:01:00]} 13. Nxf4 {[%emt 0:01:08]} Qe7 {[%emt 0:04:20]} 14. O-O {[%emt 0:00:28]} O-O {[%emt 0:00:14]} 15. a4 {[%emt 0:00:18]} g5 {[%emt 0:08:36]} 16. Ne2 {[%emt 0:00:10]} g4 {[%emt 0:00:39]} 17. h4 {[%emt 0:05:19]} Ne4 {[%emt 0:03:59]} 18. Bxe4 {[%emt 0:00:26]} dxe4 {[%emt 0:02:30]} 19. g3 {[%emt 0:00:15]} f5 {[%emt 0:01:03]} 20. c4 {[%emt 0:00:14]} Be6 {[%emt 0:02:11]} 21. a5 {[%emt 0:01:13]} b5 {[%emt 0:08:52]} 22. d5 {[%emt 0:02:44]} Bd7 {[%emt 0:07:19]} 23. dxc6 {[%emt 0:00:16]} Bxc6 {[%emt 0:00:34]} 24. cxb5 {[%emt 0:00:07]} Bd5 {[%emt 0:01:40]} 25. Rfc1 {[%emt 0:01:52]} Rac8 {[%emt 0:02:15]} 26. Qxc8 {[%emt 0:00:37]} Rxc8 {[%emt 0:00:06]} 27. Rxc8+ {[%emt 0:00:06]} Kf7 {[%emt 0:01:37]} 28. Rac1 {[%emt 0:02:41]} Qb4 {[%emt 0:01:01]} 29. Nf4 {[%emt 0:00:43]} Bb3 {[%emt 0:02:54]} 30. b6 {[%emt 0:01:13]} axb6 {[%emt 0:01:10]} 31. a6 {[%emt 0:00:06]} 1-0

[Event "28th Hit Open-A 2024"]
[Site "Nova Gorica"]
[Date "2024.02.02"]
[Round "9.20"]
[White "Zupancic, Urban"]
[Black "Ceschia, Ivano"]
[Result "1-0"]
[ECO "B33"]
[WhiteElo "2025"]
[BlackElo "2183"]
[Annotator "ChessBase"]
[PlyCount "46"]
[EventDate "2024.01.22"]
[EventType "swiss"]
[EventCountry "SLO"]
[SourceTitle "playchess.com"]
[Source "ChessBase"]
[SourceQuality "1"]
[TimeControl "5400+30"]

1. e4 {[%emt 0:00:04]} c5 {[%emt 0:06:34]} 2. Nf3 {[%emt 0:00:14]} Nc6 {[%emt 0:00:02]} 3. d4 {[%emt 0:00:20]} cxd4 {[%emt 0:00:06]} 4. Nxd4 {[%emt 0:00:12]} Qb6 {[%emt 0:00:04]} 5. Nb3 {[%emt 0:03:23]} Nf6 {[%emt 0:00:06]} 6. Nc3 {[%emt 0:01:13]} e6 {[%emt 0:00:03]} 7. Bd3 {[%emt 0:08:53]} Qc7 {[%emt 0:04:16]} 8. O-O {[%emt 0:13:26]} a6 {[%emt 0:00:04]} 9. f4 {[%emt 0:04:44]} d6 {[%emt 0:00:07]} 10. Qf3 {[%emt 0:02:40]} Be7 {[%emt 0:10:29]} 11. Be3 {[%emt 0:04:11]} Bd7 {[%emt 0:05:01]} 12. g4 {[%emt 0:11:39]} g5 {[%emt 0:04:22]} 13. e5 {[%emt 0:16:55]} Nxg4 {[%emt 0:10:38]} 14. exd6 {[%emt 0:09:52]} Bxd6 {[%emt 0:00:55]} 15. Qxg4 {[%emt 0:00:38]} gxf4 {[%emt 0:02:32]} 16. Bxf4 {[%emt 0:06:44]} Bxf4 {[%emt 0:15:20]} 17. Qxf4 {[%emt 0:01:26]} Ne5 {[%emt 0:09:59]} 18. Rae1 {[%emt 0:05:36]} Rg8+ {[%emt 0:00:51]} 19. Kh1 {[%emt 0:00:18]} Bc6+ {[%emt 0:05:34]} 20. Be4 {[%emt 0:01:06]} O-O-O {[%emt 0:20:19]} 21. Bxc6 {[%emt 0:01:00]} Qxc6+ {[%emt 0:00:03]} 22. Qe4 {[%emt 0:00:52]} Qxe4+ {[%emt 0:02:37]} 23. Nxe4 {[%emt 0:00:33]} Rg7 {[%emt 0:01:58]} 1-0

[Event "28th Hit Open-A 2024"]
[Site "Nova Gorica"]
[Date "2024.02.02"]
[Round "9.21"]
[White "Hrescak, Ivana"]
[Black "Capaliku, Aleks"]
[Result "1/2-1/2"]
[ECO "A85"]
[WhiteElo "2117"]
[BlackElo "1913"]
[Annotator "ChessBase"]
[PlyCount "32"]
[EventDate "2024.01.22"]
[EventType "swiss"]
[EventCountry "SLO"]
[SourceTitle "playchess.com"]
[Source "ChessBase"]
[SourceQuality "1"]
[TimeControl "5400+30"]

1. d4 {[%emt 0:00:22]} d5 {[%emt 0:00:25]} 2. c4 {[%emt 0:00:32]} e6 {[%emt 0:00:03]} 3. Nc3 {[%emt 0:00:14]} c6 {[%emt 0:00:50]} 4. e3 {[%emt 0:01:44]} f5 {[%emt 0:00:37]} 5. Nf3 {[%emt 0:02:34]} Nf6 {[%emt 0:00:07]} 6. Be2 {[%emt 0:03:10]} Bd6 {[%emt 0:00:07]} 7. Bd2 {[%emt 0:03:25]} O-O {[%emt 0:00:10]} 8. O-O {[%emt 0:02:04]} Nbd7 {[%emt 0:01:44]} 9. cxd5 {[%emt 0:00:46]} exd5 {[%emt 0:01:03]} 10. Qb3 {[%emt 0:08:41]} Ne4 {[%emt 0:03:27]} 11. Bd3 {[%emt 0:10:47]} Qe7 {[%emt 0:02:47]} 12. Ne2 {[%emt 0:03:19]} Ndf6 {[%emt 0:03:25]} 13. Ng3 {[%emt 0:05:03]} g5 {[%emt 0:08:17]} 14. Bc3 {[%emt 0:05:10]} Ng4 {[%emt 0:09:57]} 15. Qc2 {[%emt 0:04:09]} Bd7 {[%emt 0:17:51]} 16. a3 {[%emt 0:03:21]} Rae8 {[%emt 0:08:03]} 1/2-1/2

[Event "28th Hit Open-A 2024"]
[Site "Nova Gorica"]
[Date "2024.02.02"]
[Round "9.22"]
[White "Budai, Federico"]
[Black "Debevec, Blaz"]
[Result "1-0"]
[ECO "C63"]
[WhiteElo "1861"]
[BlackElo "2077"]
[Annotator "NA"]
[PlyCount "79"]
[EventDate "2024.01.22"]
[EventType "swiss"]
[EventCountry "SLO"]
[SourceTitle "playchess.com"]
[Source "ChessBase"]
[SourceQuality "1"]
[TimeControl "5400+30"]

1. e4 {[%emt 0:00:01]} e5 {[%emt 0:00:05]} 2. Nf3 {[%emt 0:00:24]} Nc6 {[%emt 0:00:09]} 3. Bb5 {[%emt 0:00:08]} f5 {[%emt 0:00:06]} 4. d3 {[%emt 0:00:09]} Nf6 {[%emt 0:00:08]} 5. O-O {[%emt 0:00:56]} Bc5 {[%emt 0:00:15]} 6. exf5 {[%emt 0:01:38]} O-O {[%emt 0:01:34]} 7. Bxc6 {[%emt 0:03:25]} dxc6 {[%emt 0:00:18]} 8. Nxe5 {[%emt 0:05:35]} Bxf5 {[%emt 0:02:32]} 9. Be3 {[%emt 0:06:46]} Bd6 {[%emt 0:01:35]} 10. Nc4 {[%emt 0:05:28]} Ng4 {[%emt 0:03:26]} 11. h3 {[%emt 0:05:13]} Nh2 {[%emt 0:06:27]} 12. Nxd6 {[%emt 0:07:22]} Qxd6 {[%emt 0:00:16]} 13. Re1 {[%emt 0:07:25]} Bxh3 {[%emt 0:05:56]} 14. Qh5 {[%emt 0:07:56]} Nf3+ {[%emt 0:02:49]} 15. gxf3 {[%emt 0:01:46]} Qd7 {[%emt 0:00:51]} 16. Nd2 {[%emt 0:11:26]} Be6 {[%emt 0:03:24]} 17. Kf1 {[%emt 0:03:59]} Rf5 {[%emt 0:00:09]} 18. Qh1 {[%emt 0:01:15]} Raf8 {[%emt 0:00:38]} 19. Ke2 {[%emt 0:00:51]} Bd5 {[%emt 0:02:15]} 20. Rg1 {[%emt 0:04:11]} c5 {[%emt 0:04:19]} 21. Rg3 {[%emt 0:02:40]} b5 {[%emt 0:03:15]} 22. Bxc5 {[%emt 0:09:36]} Re8+ {[%emt 0:06:03]} 23. Be3 {[%emt 0:00:20]} Qc6 {[%emt 0:00:22]} 24. Rc1 {[%emt 0:02:25]} Qf6 {[%emt 0:01:25]} 25. c3 {[%emt 0:01:16]} c5 {[%emt 0:02:01]} 26. Ne4 {[%emt 0:01:48]} Qc6 {[%emt 0:00:17]} 27. Qg2 {[%emt 0:01:05]} g6 {[%emt 0:00:23]} 28. a3 {[%emt 0:05:05]} c4 {[%emt 0:00:56]} 29. d4 {[%emt 0:00:06]} a5 {[%emt 0:04:21]} 30. Rg1 {[%emt 0:03:04]} b4 {[%emt 0:00:29]} 31. axb4 {[%emt 0:00:33]} axb4 {[%emt 0:00:17]} 32. Ra1 {[%emt 0:01:02]} bxc3 {[%emt 0:01:52]} 33. bxc3 {[%emt 0:00:07]} Qb6 {[%emt 0:01:00]} 34. Rd1 {[%emt 0:00:59]} Rxf3 {[%emt 0:01:03]} 35. Qxf3 {[%emt 0:00:45]} Bxe4 {[%emt 0:00:09]} 36. Qg4 {[%emt 0:00:55]} Qb2+ {[%emt 0:01:08]} 37. Kf1 {[%emt 0:00:11]} Qxc3 {[%emt 0:00:13]} 38. Kg1 {[%emt 0:00:28]} Qb2 {[%emt 0:01:04]} 39. Qd7 {[%emt 0:00:40]} Qb8 {[%emt 0:01:29]} 40. Bh6 {[%emt 0:00:24]} 1-0

[Event "28th Hit Open-A 2024"]
[Site "Nova Gorica"]
[Date "2024.02.02"]
[Round "9.23"]
[White "Barbir, Petar"]
[Black "Markocic, Tine"]
[Result "1/2-1/2"]
[ECO "B38"]
[WhiteElo "1738"]
[BlackElo "2055"]
[Annotator "NA RC"]
[PlyCount "30"]
[EventDate "2024.01.22"]
[EventType "swiss"]
[EventCountry "SLO"]
[SourceTitle "playchess.com"]
[Source "ChessBase"]
[SourceQuality "1"]
[TimeControl "5400+30"]

1. e4 {[%emt 0:00:21]} c5 {[%emt 0:00:25]} 2. Nf3 {[%emt 0:00:00]} Nc6 {[%emt 0:00:36]} 3. d4 {[%emt 0:00:08]} cxd4 {[%emt 0:00:04]} 4. Nxd4 {[%emt 0:00:10]} g6 {[%emt 0:00:20]} 5. c4 {[%emt 0:00:44]} Bg7 {[%emt 0:00:19]} 6. Be3 {[%emt 0:00:12]} Nf6 {[%emt 0:00:26]} 7. Nc3 {[%emt 0:00:14]} O-O {[%emt 0:00:31]} 8. Be2 {[%emt 0:01:16]} d6 {[%emt 0:00:55]} 9. O-O {[%emt 0:01:55]} Bd7 {[%emt 0:00:40]} 10. Nc2 {[%emt 0:02:09]} a5 {[%emt 0:01:43]} 11. f3 {[%emt 0:03:14]} Nb4 {[%emt 0:07:03]} 12. Nd4 {[%emt 0:02:15]} Nc6 {[%emt 0:04:11]} 13. Ndb5 {[%emt 0:03:01]} Ne5 {[%emt 0:02:11]} 14. Rc1 {[%emt 0:05:58]} Rc8 {[%emt 0:02:54]} 15. Na7 {[%emt 0:07:01]} Ra8 {[%emt 0:18:48]} 1/2-1/2